bitfinex/quotes_SOLUSD_20250626
["timestamp","ask_amount","ask_price","bid_price","bid_amount"]
[1750905384552,11.36263035,145.43,145.39,6.87805213]
[1750905384743,5.57366518,145.42,145.39,6.87805213]
[1750905386354,16.93629553,145.43,145.39,12.45171731]
[1750905386652,11.79366518,145.43,145.39,6.87805213]
[1750905387168,5.57366518,145.42,145.39,6.87805213]
[1750905392425,5.57366518,145.42,145.38,28.38]
[1750905392632,5.57366518,145.39,145.35,6.87994496]
[1750905392933,5.13682385,145.41,145.35,6.87994496]
[1750905392934,5.57366518,145.38,145.35,6.87994496]
[1750905393658,6.97088395,145.48,145.39,18.64964886]
[1750905393837,5.57366518,145.46,145.41,5.57366518]
[1750905394040,10.70981612,145.46,145.41,5.57366518]
[1750905394255,5.13615094,145.46,145.42,6.8766332]
[1750905395045,5.13615094,145.46,145.42,12.45029838]
[1750905395231,31.13615094,145.47,145.42,6.8766332]
[1750905395740,10.70981612,145.46,145.41,6.87694138]
[1750905395941,5.13615094,145.45,145.41,6.87694138]
[1750905396161,10.70981612,145.46,145.41,6.87694138]
[1750905396371,5.13615094,145.45,145.41,6.87694138]
[1750905396535,5.13615094,145.45,145.4,35.25741471]
[1750905396869,5.57366518,145.42,145.4,28.38]
[1750905397077,5.57366518,145.42,145.37,35.25899841]
[1750905397261,10.70981612,145.42,145.37,35.25899841]
[1750905397462,26.0,145.44,145.37,35.25899841]
[1750905397463,10.70981612,145.43,145.37,35.25899841]
[1750905397658,5.13615094,145.42,145.37,35.25899841]
[1750905398060,5.13615094,145.42,145.37,40.83266359]
[1750905398281,5.13615094,145.43,145.38,5.57366518]
[1750905398472,31.13615094,145.44,145.38,5.57366518]
[1750905398856,36.70981612,145.44,145.38,5.57366518]
[1750905399268,36.70981612,145.44,145.37,35.25899841]
[1750905399466,10.70981612,145.43,145.37,40.83266359]
[1750905399780,5.13615094,145.42,145.37,40.83266359]
[1750905400359,5.13615094,145.42,145.37,35.25899841]
[1750905402290,10.70981612,145.42,145.37,35.25899841]
[1750905402469,5.57366518,145.42,145.37,35.25899841]
[1750905402659,10.70981612,145.42,145.37,35.25899841]
[1750905402860,5.57366518,145.42,145.37,35.25899841]
[1750905403059,5.57366518,145.41,145.37,28.38]
[1750905403374,5.57366518,145.4,145.37,28.38]
[1750905406260,5.13615094,145.43,145.38,5.57366518]
[1750905406462,5.13615094,145.42,145.38,5.57366518]
[1750905406683,5.13615094,145.43,145.38,5.57366518]
[1750905406856,5.13615094,145.42,145.38,5.57366518]
[1750905407880,5.13615094,145.42,145.39,6.87805213]
[1750905408077,5.13615094,145.43,145.39,6.87805213]
[1750905408281,5.13615094,145.42,145.39,6.87805213]
[1750905408494,10.70981612,145.43,145.39,6.87805213]
[1750905408657,5.57366518,145.41,145.38,6.87850673]
[1750905410086,5.57366518,145.42,145.38,6.87850673]
[1750905410266,10.70981612,145.42,145.38,6.87850673]
[1750905410469,5.57366518,145.42,145.38,6.87850673]
[1750905410696,5.57366518,145.41,145.37,35.25883987]
[1750905411275,10.70981612,145.41,145.37,35.25883987]
[1750905411466,5.57366518,145.41,145.37,35.25883987]
[1750905411868,10.70981612,145.41,145.37,35.25883987]
[1750905412073,5.57366518,145.4,145.37,35.25883987]
[1750905413402,5.57366518,145.4,145.36,35.25947165]
[1750905420821,10.71245943,145.4,145.36,35.25947165]
[1750905421023,5.57366518,145.4,145.36,35.25947165]
[1750905421199,5.13879425,145.42,145.36,35.25947165]
[1750905421398,5.57366518,145.4,145.36,35.25947165]
[1750905427130,5.14096456,145.43,145.39,5.57366518]
[1750905427313,146.5,145.44,145.42,5.57366518]
[1750905427503,5.57366518,145.48,145.43,5.57366518]
[1750905427702,5.57366518,145.48,145.45,5.57366518]
[1750905427703,5.13869039,145.48,145.45,5.57366518]
[1750905428003,11.99906511,145.53,145.47,5.57366518]
[1750905428329,5.13647963,145.52,145.5,5.57366518]
[1750905428515,36.75014481,145.54,145.51,28.36]
[1750905428826,5.13647963,145.53,145.51,28.36]
[1750905429633,31.61366518,145.54,145.51,28.36]
[1750905429835,10.75014481,145.54,145.51,28.36]
[1750905430140,26.0,145.53,145.51,28.36]
[1750905430520,31.57366518,145.53,145.51,28.36]
[1750905430702,5.57366518,145.52,145.48,28.36]
[1750905430901,5.57366518,145.51,145.48,28.36]
[1750905431103,26.0,145.53,145.49,5.57366518]
[1750905431303,31.57366518,145.53,145.49,5.57366518]
[1750905431528,31.57366518,145.53,145.49,12.44695526]
[1750905432248,5.57366518,145.51,145.46,36.3505]
[1750905432532,5.57366518,145.51,145.47,5.57366518]
[1750905432828,31.57366518,145.52,145.47,5.57366518]
[1750905433548,5.57366518,145.51,145.47,5.57366518]
[1750905434758,5.57366518,145.5,145.46,41.92416518]
[1750905434937,5.57366518,145.49,145.46,28.36]
[1750905435437,5.57366518,145.5,145.46,40.80830044]
[1750905435740,5.57366518,145.5,145.46,33.93366518]
[1750905435944,5.57366518,145.5,145.46,28.36]
[1750905437461,5.57366518,145.5,145.46,40.80837699]
[1750905438767,5.57366518,145.5,145.46,28.36]
[1750905438968,5.57366518,145.49,145.46,28.36]
[1750905442864,5.57366518,145.47,145.43,6.012]
[1750905443081,5.57366518,145.46,145.43,34.472]
[1750905443390,5.57366518,145.47,145.43,41.34803988]
[1750905443762,5.57366518,145.47,145.43,46.92170506]
[1750905444589,153.37254837,145.51,145.43,46.92170506]
[1750905444590,5.57366518,145.46,145.43,28.46]
[1750905445170,5.57366518,145.45,145.43,28.44]
[1750905445994,5.57366518,145.44,145.39,14.98971062]
[1750905446193,5.57366518,145.43,145.41,28.44]
[1750905447266,5.57366518,145.44,145.41,28.44]
[1750905447689,5.57366518,145.45,145.41,35.31697399]
[1750905447903,5.57366518,145.46,145.42,5.57366518]
[1750905448093,5.57366518,145.46,145.41,40.89063917]
[1750905448288,172.64216157,145.49,145.41,40.89063917]
[1750905448289,5.57366518,145.45,145.41,40.89063917]
[1750905449003,5.57366518,145.45,145.41,35.31697399]
[1750905449699,5.57366518,145.46,145.41,40.89063917]
[1750905450813,5.57366518,145.45,145.41,40.89063917]
[1750905451688,172.64216157,145.49,145.41,40.89063917]
[1750905451689,5.57366518,145.46,145.41,40.89063917]
[1750905452295,5.57366518,145.46,145.42,5.57366518]
[1750905452698,5.57366518,145.46,145.42,12.4501093]
[1750905453309,152.07366518,145.49,145.44,5.57366518]
[1750905453503,7.95489993,145.52,145.45,33.99366518]
[1750905453504,5.57366518,145.5,145.45,33.99366518]
[1750905454388,5.57366518,145.49,145.45,28.42]
[1750905454586,5.57366518,145.49,145.45,35.29505519]
[1750905457219,172.5,145.51,145.45,40.86872037]
[1750905457400,5.57366518,145.5,145.46,5.57366518]
[1750905457602,5.57366518,145.5,145.45,40.86872037]
[1750905458416,5.57366518,145.49,145.45,40.86872037]
[1750905460121,5.57366518,145.48,145.45,28.42]
[1750905460621,172.5,145.51,145.45,35.29520506]
[1750905460925,5.57366518,145.49,145.45,35.29520506]
[1750905461929,5.57366518,145.48,145.45,28.42]
[1750905464703,5.57366518,145.48,145.45,35.29510361]
[1750905465820,5.57366518,145.48,145.45,28.42]
[1750905466003,5.57366518,145.47,145.42,5.57366518]
[1750905466200,11.98731296,145.5,145.39,8.1121]
[1750905466201,5.57366518,145.46,145.43,28.38]
[1750905466913,5.57366518,145.47,145.43,28.38]
[1750905467607,5.57366518,145.47,145.43,40.82958028]
[1750905468612,5.57366518,145.48,145.43,40.82958028]
[1750905469434,5.1142688,145.49,145.43,40.82958028]
[1750905469727,5.57366518,145.48,145.43,40.82958028]
[1750905470619,5.57366518,145.47,145.43,40.82958028]
[1750905471723,5.57366518,145.48,145.43,40.82958028]
[1750905472127,10.68793398,145.48,145.43,40.82958028]
[1750905472447,5.57366518,145.48,145.43,40.82958028]
[1750905472815,10.68793398,145.48,145.43,40.82958028]
[1750905473013,5.57366518,145.48,145.43,40.82958028]
[1750905473444,10.68793398,145.48,145.43,40.82958028]
[1750905473637,5.57366518,145.48,145.43,40.82958028]
[1750905474142,5.1142688,145.48,145.44,5.57366518]
[1750905474448,5.1142688,145.48,145.45,28.36]
[1750905475027,5.1142688,145.48,145.45,35.23518007]
[1750905479370,5.57366518,145.49,145.45,35.23518007]
[1750905479670,10.71239437,145.48,145.45,35.23518007]
[1750905479965,5.57366518,145.48,145.45,35.23518007]
[1750905481473,5.13947683,145.47,145.45,35.23518007]
[1750905481973,5.57366518,145.48,145.45,35.23518007]
[1750905482266,5.13947683,145.49,145.46,5.57366518]
[1750905482466,152.07366518,145.51,145.47,35.23421186]
[1750905482669,5.13931898,145.5,145.47,35.23421186]
[1750905482844,5.13931898,145.49,145.47,35.23421186]
[1750905483038,5.57366518,145.49,145.47,35.23421186]
[1750905483272,5.13932129,145.48,145.47,35.23421186]
[1750905484149,10.71298647,145.48,145.44,28.36]
[1750905484350,10.71298647,145.47,145.44,28.36]
[1750905484555,5.13932129,145.46,145.44,28.36]
[1750905484772,10.71298647,145.46,145.44,28.36]
[1750905484948,5.57366518,145.46,145.44,28.36]
[1750905485359,10.71298647,145.46,145.44,28.36]
[1750905485669,5.57366518,145.46,145.44,28.36]
[1750905486057,5.57366518,145.46,145.43,28.36]
[1750905486058,5.14118562,145.45,145.43,28.36]
[1750905486575,5.14118562,145.45,145.43,35.2359358]
[1750905488169,5.57366518,145.46,145.43,35.2359358]
[1750905489175,5.57366518,145.45,145.43,35.2359358]
[1750905489746,10.71566246,145.46,145.43,35.2359358]
[1750905489951,5.14199728,145.45,145.43,35.2359358]
[1750905496460,5.57366518,145.46,145.43,35.2359358]
[1750905496660,5.143987,145.45,145.43,35.2359358]
[1750905496872,5.57366518,145.46,145.43,35.2359358]
[1750905497078,5.143987,145.45,145.43,35.2359358]
[1750905497373,5.57366518,145.46,145.43,35.2359358]
[1750905497679,10.71799943,145.45,145.4,13.59866518]
[1750905497860,5.14465061,145.44,145.41,28.36]
[1750905498064,5.57366518,145.45,145.41,28.36]
[1750905498389,5.57366518,145.45,145.4,5.57366518]
[1750905498390,5.14464945,145.44,145.4,5.57366518]
[1750905498572,5.57366518,145.42,145.39,28.34]
[1750905499077,5.57366518,145.42,145.38,6.87837169]
[1750905499277,5.57366518,145.41,145.39,28.34]
[1750905501282,5.57366518,145.4,145.37,0.02]
[1750905501473,5.57366518,145.39,145.37,28.38]
[1750905502772,5.57366518,145.4,145.37,28.38]
[1750905503761,5.57366518,145.41,145.37,28.38]
[1750905503986,5.57366518,145.4,145.37,28.38]
[1750905505287,5.57366518,145.4,145.37,35.25891051]
[1750905507003,5.57366518,145.41,145.37,35.25891051]
[1750905508593,5.57366518,145.41,145.37,6.89891051]
[1750905508770,5.57366518,145.41,145.38,28.36]
[1750905510298,5.57366518,145.41,145.37,35.25891051]
[1750905510479,5.57366518,145.4,145.37,35.25891051]
[1750905510681,5.57366518,145.4,145.37,28.38]
[1750905515082,5.57366518,145.41,145.37,35.25893268]
[1750905516503,36.70115192,145.43,145.38,5.57366518]
[1750905516798,36.70115192,145.43,145.39,28.36]
[1750905516799,5.57366518,145.42,145.39,28.36]
[1750905518005,5.57366518,145.41,145.39,28.36]
[1750905518208,5.57366518,145.4,145.37,35.25893268]
[1750905518800,5.57366518,145.41,145.37,35.25893268]
[1750905519100,5.57366518,145.41,145.37,40.83259786]
[1750905524714,5.57366518,145.41,145.37,28.38]
[1750905526009,5.57366518,145.4,145.37,28.38]
[1750905527305,5.57366518,145.4,145.37,28.36]
[1750905527693,5.57366518,145.41,145.37,35.23890295]
[1750905528784,31.12968205,145.43,145.37,40.81256813]
[1750905529005,5.57366518,145.42,145.37,40.81256813]
[1750905529309,146.5,145.44,145.41,5.57366518]
[1750905529483,11.75366518,145.47,145.42,33.91366518]
[1750905529484,158.25366518,145.47,145.42,33.91366518]
[1750905529802,152.68,145.47,145.43,5.57366518]
[1750905530103,146.5,145.47,145.44,33.91366518]
[1750905530301,146.5,145.47,145.44,28.34]
[1750905532097,152.07366518,145.47,145.44,28.34]
[1750905533290,152.07366518,145.47,145.44,35.21563627]
[1750905533790,152.07366518,145.47,145.44,28.34]
[1750905535118,146.5,145.47,145.44,28.34]
[1750905535297,152.07366518,145.47,145.44,28.34]
[1750905539614,5.57366518,145.46,145.44,28.34]
[1750905540716,146.5,145.5,145.45,5.57366518]
[1750905541035,5.57366518,145.48,145.44,35.21558527]
[1750905541319,5.12649143,145.49,145.44,35.21558527]
[1750905541491,5.57366518,145.48,145.44,40.78925045]
[1750905543921,5.57366518,145.45,145.42,6.8766332]
[1750905544216,5.57366518,145.43,145.41,35.19703408]
[1750905545098,5.57366518,145.44,145.41,35.19703408]
[1750905545990,5.57366518,145.43,145.41,35.19703408]
[1750905546919,5.57366518,145.43,145.39,7.7925]
[1750905547124,5.57366518,145.42,145.4,28.32]
[1750905547716,5.57366518,145.42,145.38,18.64964886]
[1750905547890,5.57366518,145.41,145.39,28.32]
[1750905548290,5.57366518,145.4,145.39,28.32]
[1750905549715,5.57366518,145.4,145.38,35.19835874]
[1750905550312,5.57366518,145.4,145.38,6.87835874]
[1750905550619,5.57366518,145.41,145.37,6.89897635]
[1750905551301,5.57366518,145.4,145.37,6.89897635]
[1750905552601,5.57366518,145.41,145.37,6.89897635]
[1750905553704,5.57366518,145.4,145.37,0.02]
[1750905553906,5.57366518,145.39,145.37,0.02]
[1750905556411,5.57366518,145.4,145.37,0.02]
[1750905557327,5.57366518,145.41,145.37,0.02]
[1750905557830,5.57366518,145.42,145.37,5.59366518]
[1750905559625,172.5,145.44,145.38,12.45219042]
[1750905559626,5.57366518,145.43,145.38,12.45219042]
[1750905559825,5.57366518,145.43,145.39,28.32]
[1750905560750,172.5,145.44,145.39,28.32]
[1750905560917,5.57366518,145.43,145.39,28.32]
[1750905561734,5.57366518,145.43,145.4,6.87757909]
[1750905562832,5.57366518,145.42,145.4,6.87757909]
[1750905564342,146.5,145.44,145.4,6.87757909]
[1750905564645,5.57366518,145.43,145.4,6.87757909]
[1750905574320,5.57366518,145.42,145.4,6.87757909]
[1750905574644,146.5,145.44,145.4,6.87757909]
[1750905574861,5.57366518,145.43,145.4,6.87757909]
[1750905579051,5.57366518,145.42,145.4,6.87757909]
[1750905580249,5.57366518,145.42,145.38,11.86086518]
[1750905580250,3.56503541,145.41,145.37,0.02]
[1750905580460,3.56503541,145.39,145.37,0.02]
[1750905582132,3.56503541,145.39,145.37,6.89896332]
[1750905582332,5.57149005,145.39,145.37,6.89896332]
[1750905582854,5.13494543,145.43,145.37,6.89896332]
[1750905583030,5.57149005,145.4,145.37,6.89896332]
[1750905585148,5.57149005,145.4,145.37,0.02]
[1750905585351,5.57149005,145.38,145.37,0.02]
[1750905586251,5.57149005,145.39,145.37,0.02]
[1750905588948,5.57149005,145.38,145.37,0.02]
[1750905589542,5.57149005,145.39,145.37,0.02]
[1750905590562,1.91052314,145.42,145.37,0.02]
[1750905590563,151.64286725,145.41,145.37,0.02]
[1750905590762,5.57149005,145.39,145.37,0.02]
[1750905594573,5.14334502,145.4,145.37,0.02]
[1750905594860,146.5,145.41,145.37,0.02]
[1750905594861,146.5,145.41,145.37,5.59149005]
[1750905595061,152.07149005,145.41,145.37,5.59149005]
[1750905596180,152.07149005,145.41,145.38,6.87852524]
[1750905599662,152.07149005,145.41,145.37,5.59149005]
[1750905601673,152.07149005,145.41,145.38,6.87852524]
[1750905602267,150.06494748,145.41,145.38,6.87852524]
[1750905604085,3.56494748,145.39,145.37,0.02]
[1750905606681,5.14122199,145.4,145.37,0.02]
[1750905606682,1.6228,145.38,145.37,0.02]
[1750905606888,26.0,145.36,145.34,0.02]
[1750905607055,200.28230304,145.35,145.34,0.02]
[1750905607456,25.292772,145.34,145.33,0.02]
[1750905607757,165.57613357,145.33,145.32,0.02]
[1750905607960,165.57613357,145.32,145.31,0.02]
[1750905608172,174.28230304,145.32,145.31,0.02]
[1750905609078,181.1636683,145.32,145.31,0.02]
[1750905610282,183.17987606,145.32,145.31,0.02]
[1750905610972,36.67987606,145.32,145.31,0.02]
[1750905613260,18.933972,145.31,145.3,0.02]
[1750905613492,24.51512724,145.31,145.3,0.02]
[1750905614178,31.39696606,145.31,145.3,0.02]
[1750905615284,31.39696606,145.31,145.25,0.02]
[1750905615285,26.0,145.28,145.25,0.02]
[1750905615776,5.58115524,145.26,145.25,0.02]
[1750905621677,0.42648471,145.29,145.25,0.02]
[1750905621880,5.58115524,145.27,145.25,0.02]
[1750905622181,5.58115524,145.26,145.25,0.02]
[1750905624114,26.42648471,145.29,145.25,0.02]
[1750905624281,5.58115524,145.26,145.25,0.02]
[1750905624975,26.42648471,145.29,145.25,0.02]
[1750905624976,26.0,145.29,145.25,5.60115524]
[1750905625203,31.58115524,145.29,145.25,5.60115524]
[1750905625904,5.58115524,145.31,145.27,5.58115524]
[1750905626106,5.58115524,145.3,145.26,18.61218946]
[1750905627134,5.58115524,145.3,145.26,6.1469]
[1750905627316,5.58115524,145.29,145.26,6.1469]
[1750905629328,5.58115524,145.3,145.26,13.03109345]
[1750905630512,26.0,145.32,145.26,6.1469]
[1750905630513,5.58115524,145.29,145.26,6.1469]
[1750905631218,5.58115524,145.28,145.25,0.02]
[1750905631728,0.42648471,145.3,145.25,0.02]
[1750905631936,5.58115524,145.26,145.25,0.02]
[1750905637728,172.5,145.29,145.25,0.02]
[1750905637940,5.58115524,145.27,145.25,0.02]
[1750905638121,5.58115524,145.26,145.25,0.02]
[1750905640635,38.89184757,145.26,145.25,0.02]
[1750905641422,33.31069233,145.26,145.25,0.02]
[1750905641725,38.89184757,145.26,145.25,0.02]
[1750905642139,32.00763995,145.26,145.25,0.02]
[1750905648541,5.58115524,145.27,145.25,0.02]
[1750905648752,152.08115524,145.28,145.25,0.02]
[1750905648930,178.08115524,145.28,145.25,0.02]
[1750905649245,152.08115524,145.28,145.25,0.02]
[1750905650119,5.58115524,145.27,145.25,0.02]
[1750905650636,146.5,145.28,145.25,0.02]
[1750905650824,5.58115524,145.27,145.25,0.02]
[1750905651029,152.08115524,145.28,145.25,0.02]
[1750905652735,5.58115524,145.27,145.25,0.02]
[1750905654644,5.58115524,145.26,145.25,0.02]
[1750905655021,10.72321413,145.26,145.25,0.02]
[1750905655222,5.58115524,145.26,145.25,0.02]
[1750905655424,10.72321413,145.26,145.25,0.02]
[1750905655641,5.58115524,145.26,145.25,0.02]
[1750905655833,10.72321413,145.26,145.25,0.02]
[1750905656034,5.58115524,145.26,145.25,0.02]
[1750905656244,10.72321413,145.26,145.25,0.02]
[1750905656843,5.58115524,145.26,145.25,0.02]
[1750905657043,10.72321413,145.26,145.25,0.02]
[1750905657245,5.58115524,145.26,145.25,0.02]
[1750905657436,10.72321413,145.26,145.25,0.02]
[1750905657640,5.58115524,145.26,145.25,0.02]
[1750905657833,10.72321413,145.26,145.25,0.02]
[1750905658035,10.72321413,145.27,145.25,0.02]
[1750905658236,5.14205889,145.27,145.25,0.02]
[1750905658452,152.08115524,145.28,145.25,0.02]
[1750905659739,5.58115524,145.27,145.25,0.02]
[1750905660569,5.58115524,145.26,145.25,0.02]
[1750905664773,5.14166278,145.27,145.25,0.02]
[1750905664959,5.58115524,145.26,145.25,0.02]
[1750905665559,10.72281802,145.27,145.25,0.02]
[1750905665866,5.58115524,145.27,145.25,0.02]
[1750905666170,152.08115524,145.28,145.25,0.02]
[1750905667775,146.5,145.28,145.25,0.02]
[1750905667952,152.08115524,145.28,145.25,0.02]
[1750905668154,5.58115524,145.27,145.25,0.02]
[1750905668369,5.58115524,145.26,145.25,0.02]
[1750905669680,10.72315866,145.26,145.25,0.02]
[1750905669977,31.58115524,145.26,145.25,0.02]
[1750905670182,36.72315866,145.26,145.25,0.02]
[1750905675579,36.72789189,145.26,145.25,0.02]
[1750905676174,37.1543766,145.26,145.25,0.02]
[1750905677578,36.72789189,145.26,145.25,0.02]
[1750905682963,37.1543766,145.26,145.25,0.02]
[1750905683761,11.1543766,145.26,145.25,0.02]
[1750905688684,5.57322136,145.26,145.25,0.02]
[1750905688889,11.1543766,145.26,145.25,0.02]
[1750905700597,5.14673665,145.26,145.25,0.02]
[1750905700806,36.72789189,145.26,145.25,0.02]
[1750905705001,37.1543766,145.26,145.25,0.02]
[1750905711305,31.14673665,145.26,145.25,0.02]
[1750905713410,36.72789189,145.26,145.25,0.02]
[1750905713600,31.14673665,145.26,145.25,0.02]
[1750905714112,36.72789189,145.26,145.25,0.02]
[1750905714597,31.14673665,145.26,145.25,0.02]
[1750905714787,36.72789189,145.26,145.25,0.02]
[1750905715506,5.14673665,145.26,145.25,0.02]
[1750905719896,5.14673665,145.27,145.25,0.02]
[1750905720098,184.20115524,145.28,145.25,0.02]
[1750905720411,146.5,145.28,145.26,5.58115524]
[1750905720806,5.58115524,145.27,145.25,0.02]
[1750905721007,10.72939289,145.26,145.25,0.02]
[1750905721412,5.58115524,145.26,145.25,0.02]
[1750905721703,10.72939289,145.26,145.25,0.02]
[1750905721910,5.58115524,145.26,145.25,0.02]
[1750905722101,10.72939289,145.26,145.25,0.02]
[1750905722301,5.58115524,145.26,145.25,0.02]
[1750905722515,10.72939289,145.26,145.25,0.02]
[1750905722702,5.58115524,145.26,145.25,0.02]
[1750905722905,10.72939289,145.26,145.25,0.02]
[1750905726001,5.14823765,145.26,145.25,0.02]
[1750905726204,44.04008522,145.26,145.25,0.02]
[1750905727512,36.68973408,145.26,145.25,0.02]
[1750905727720,43.1231549,145.26,145.25,0.02]
[1750905731922,26.0,145.23,145.2,0.9645307]
[1750905732234,5.58115524,145.21,145.2,0.9645307]
[1750905733320,26.0,145.22,145.2,0.9645307]
[1750905733522,31.58115524,145.22,145.2,0.9645307]
[1750905734003,5.58115524,145.21,145.2,0.9645307]
[1750905736613,10.72222475,145.23,145.2,0.9645307]
[1750905737030,5.58115524,145.22,145.2,0.9645307]
[1750905737723,10.72222475,145.22,145.2,0.9645307]
[1750905737927,5.58115524,145.22,145.2,0.9645307]
[1750905738130,10.72222475,145.22,145.2,0.9645307]
[1750905738330,5.58115524,145.22,145.2,0.9645307]
[1750905738518,10.72222475,145.22,145.2,0.9645307]
[1750905738726,5.58115524,145.22,145.2,0.9645307]
[1750905738932,10.72222475,145.22,145.2,0.9645307]
[1750905739236,26.0,145.22,145.2,0.9645307]
[1750905739435,5.14106951,145.22,145.2,0.9645307]
[1750905739635,10.72222475,145.23,145.2,0.9645307]
[1750905740518,5.14106951,145.23,145.2,7.8515256]
[1750905740714,10.72222475,145.24,145.2,13.43268084]
[1750905740929,5.58115524,145.24,145.2,13.43268084]
[1750905741129,10.72224273,145.24,145.2,13.43268084]
[1750905742339,10.72224273,145.24,145.2,7.8515256]
[1750905744936,5.58115524,145.21,145.2,0.9645307]
[1750905746218,31.58115524,145.22,145.2,0.9645307]
[1750905746430,10.72506083,145.24,145.2,0.9645307]
[1750905746647,5.14390559,145.24,145.2,7.85149237]
[1750905746821,10.72506083,145.24,145.2,13.43264761]
[1750905747135,5.58115524,145.24,145.2,13.43264761]
[1750905747340,5.58115524,145.25,145.21,13.82765524]
[1750905747543,5.58115524,145.25,145.21,8.2465]
[1750905747752,10.72482347,145.25,145.21,8.2465]
[1750905747933,5.58115524,145.25,145.21,8.2465]
[1750905748130,10.72482347,145.25,145.21,8.2465]
[1750905748326,26.0,145.27,145.21,6.6261]
[1750905748327,10.72482347,145.24,145.21,6.6261]
[1750905748651,5.58115524,145.24,145.21,6.6261]
[1750905749157,10.72482347,145.24,145.21,6.6261]
[1750905749319,5.58115524,145.24,145.21,6.6261]
[1750905749754,10.72482347,145.24,145.21,6.6261]
[1750905749948,5.58115524,145.24,145.21,6.6261]
[1750905750413,10.72482347,145.24,145.21,6.6261]
[1750905750616,5.58115524,145.24,145.21,6.6261]
[1750905751823,5.58115524,145.25,145.21,13.51259411]
[1750905752023,5.14366823,145.25,145.21,19.09374935]
[1750905752225,5.58115524,145.26,145.21,19.09374935]
[1750905752426,157.22482347,145.26,145.21,19.09374935]
[1750905752732,152.08115524,145.26,145.21,19.09374935]
[1750905753654,146.5,145.26,145.23,5.58115524]
[1750905754730,146.5,145.26,145.23,12.46631461]
[1750905756354,146.5,145.26,145.22,6.88610384]
[1750905756555,146.5,145.26,145.23,5.58115524]
[1750905758656,146.5,145.26,145.23,12.46633753]
[1750905759637,146.5,145.26,145.25,5.58115524]
[1750905759850,6.12,145.28,145.25,5.58115524]
[1750905760729,6.12,145.28,145.26,6.88420762]
[1750905761362,26.0,145.29,145.26,6.88420762]
[1750905761543,5.13949857,145.29,145.26,12.46536286]
[1750905761745,146.5,145.3,145.26,12.46536286]
[1750905762053,5.58115524,145.29,145.25,12.465669]
[1750905762352,5.58115524,145.29,145.25,6.88451376]
[1750905762662,10.71961741,145.28,145.24,6.88498458]
[1750905762833,5.58115524,145.28,145.24,6.88498458]
[1750905763033,10.71961741,145.28,145.24,6.88498458]
[1750905763236,5.58115524,145.26,145.23,1.5016]
[1750905763431,5.58115524,145.25,145.21,13.51234655]
[1750905763734,5.13846217,145.27,145.21,19.09350179]
[1750905763948,5.58115524,145.26,145.21,19.09350179]
[1750905764931,10.71961741,145.26,145.21,19.09350179]
[1750905765130,5.58115524,145.26,145.21,19.09350179]
[1750905765532,5.13846217,145.26,145.21,19.09350179]
[1750905765739,5.58115524,145.25,145.21,19.09350179]
[1750905766552,5.58115524,145.25,145.21,13.51234655]
[1750905767857,10.7217331,145.25,145.21,13.51234655]
[1750905770059,10.7217331,145.25,145.21,19.09350179]
[1750905770366,5.58115524,145.25,145.21,19.09350179]
[1750905771158,146.5,145.26,145.22,5.58115524]
[1750905771361,146.5,145.26,145.21,13.51234655]
[1750905771362,146.5,145.26,145.23,5.58115524]
[1750905771572,146.5,145.26,145.21,13.51234655]
[1750905771573,5.58115524,145.25,145.21,19.09350179]
[1750905772352,5.58115524,145.25,145.21,13.51234655]
[1750905772762,10.72128134,145.25,145.21,13.51234655]
[1750905774153,5.58115524,145.24,145.21,6.6261]
[1750905774339,10.72128134,145.25,145.21,19.09381609]
[1750905774670,10.72165713,145.25,145.21,19.09381609]
[1750905774860,5.14050189,145.25,145.22,5.58115524]
[1750905775054,152.08115524,145.26,145.22,5.58115524]
[1750905775452,146.5,145.26,145.22,5.58115524]
[1750905775654,152.08115524,145.26,145.22,5.58115524]
[1750905775852,146.5,145.26,145.22,5.58115524]
[1750905776246,146.5,145.26,145.23,6.88562969]
[1750905778777,146.5,145.26,145.23,12.46678493]
[1750905780750,152.08115524,145.26,145.22,6.88603667]
[1750905781065,146.5,145.26,145.22,6.88603667]
[1750905781242,146.5,145.26,145.22,12.46719191]
[1750905781844,146.5,145.26,145.24,5.58115524]
[1750905782253,146.5,145.26,145.23,5.58115524]
[1750905783268,146.5,145.26,145.23,12.46645673]
[1750905784779,146.5,145.26,145.24,5.58115524]
[1750905785467,11.68115524,145.28,145.24,5.58115524]